[Event "Titled Tuesday Blitz August 09 Early 2022"]
[White "Altman, Joshua"]
[Black "Rohith Krishna S"]
[WhiteFideId "426210"]
[BlackFideId "46617051"]
[WhiteElo "1945"]
[BlackElo "2118"]
[Result "0-1"]
[Round "09"]
[TimeControl "180+1"]
[Date "2022.08.09"]
[WhiteClock "0:00:11"]
[BlackClock "0:01:43"]

1. d4 {[%clk 0:03:00]}  c5 {[%clk 0:02:55]} 2. d5 {[%clk 0:03:00]}  Nf6 {[%clk 0:02:55]} 3. c4 {[%clk 0:03:01]}  d6 {[%clk 0:02:55]} 4. Nc3 {[%clk 0:03:01]}  g6 {[%clk 0:02:56]} 5. Nf3 {[%clk 0:03:01]}  Bg7 {[%clk 0:02:56]} 6. Bg5 {[%clk 0:03:01]}  O-O {[%clk 0:02:57]} 7. e3 {[%clk 0:03:01]}  a6 {[%clk 0:02:57]} 8. a4 {[%clk 0:03:01]}  a5 {[%clk 0:02:56]} 9. Bd3 {[%clk 0:02:58]}  Na6 {[%clk 0:02:56]} 10. Rc1 {[%clk 0:02:56]}  Nb4 {[%clk 0:02:56]} 11. Bb1 {[%clk 0:02:56]}  h6 {[%clk 0:02:55]} 12. Bh4 {[%clk 0:02:56]}  g5 {[%clk 0:02:54]} 13. Bg3 {[%clk 0:02:56]}  Bg4 {[%clk 0:02:50]} 14. O-O {[%clk 0:02:49]}  Nh5 {[%clk 0:02:48]} 15. h3 {[%clk 0:02:22]}  Nxg3 {[%clk 0:02:48]} 16. fxg3 {[%clk 0:02:23]}  Bh5 {[%clk 0:02:48]} 17. g4 {[%clk 0:02:21]}  Bg6 {[%clk 0:02:48]} 18. Bxg6 {[%clk 0:02:16]}  fxg6 {[%clk 0:02:49]} 19. Qe2 {[%clk 0:02:09]}  Qd7 {[%clk 0:02:47]} 20. b3 {[%clk 0:01:55]}  e6 {[%clk 0:02:46]} 21. dxe6 {[%clk 0:01:47]}  Qxe6 {[%clk 0:02:46]} 22. Nb5 {[%clk 0:01:48]}  Rf7 {[%clk 0:02:44]} 23. Rcd1 {[%clk 0:01:45]}  Bf8 {[%clk 0:02:43]} 24. Qd2 {[%clk 0:01:38]}  Re8 {[%clk 0:02:25]} 25. Nxd6 {[%clk 0:01:21]}  Rd7 {[%clk 0:02:24]} 26. Nxe8 {[%clk 0:00:55]}  Rxd2 {[%clk 0:02:23]} 27. Nf6+ {[%clk 0:00:56]}  Qxf6 {[%clk 0:02:21]} 28. Rxd2 {[%clk 0:00:56]}  Qc3 {[%clk 0:02:21]} 29. Rd7 {[%clk 0:00:51]}  Qxe3+ {[%clk 0:02:20]} 30. Kh1 {[%clk 0:00:52]}  Nd3 {[%clk 0:02:19]} 31. Rd8 {[%clk 0:00:49]}  Nf4 {[%clk 0:02:19]} 32. Re1 {[%clk 0:00:47]}  Qf2 {[%clk 0:02:17]} 33. Rg1 {[%clk 0:00:47]}  b6 {[%clk 0:02:09]} 34. Ne5 {[%clk 0:00:44]}  Kg7 {[%clk 0:01:58]} 35. Rd7+ {[%clk 0:00:41]}  Kf6 {[%clk 0:01:57]} 36. Nf3 {[%clk 0:00:29]}  Nxh3 {[%clk 0:01:49]} 37. Rd2 {[%clk 0:00:22]}  Qg3 {[%clk 0:01:44]} 38. Rf1 {[%clk 0:00:21]}  Nf4 {[%clk 0:01:44]} 39. Re1 {[%clk 0:00:14]}  Qxg4 {[%clk 0:01:42]} 40. Ne5 {[%clk 0:00:12]}  Qh4+ {[%clk 0:01:42]} 41. Kg1 {[%clk 0:00:11]}  Qxe1+ {[%clk 0:01:43]} 0-1


[Site "https://www.chess.com"]

[Event "Titled Tuesday Blitz August 09 Early 2022"]
[White "Atakhan, Abtin"]
[Black "Abdrlauf, Elham"]
[WhiteFideId "22502203"]
[BlackFideId "1533533"]
[WhiteElo "2087"]
[BlackElo "2430"]
[Result "0-1"]
[Round "09"]
[TimeControl "180+1"]
[Date "2022.08.09"]
[WhiteClock "0:00:02"]
[BlackClock "0:00:57"]

1. d4 {[%clk 0:02:57]}  Nf6 {[%clk 0:02:59]} 2. c4 {[%clk 0:02:55]}  e6 {[%clk 0:03:00]} 3. Nf3 {[%clk 0:02:30]}  c5 {[%clk 0:03:00]} 4. d5 {[%clk 0:01:03]}  exd5 {[%clk 0:03:00]} 5. cxd5 {[%clk 0:01:03]}  d6 {[%clk 0:03:01]} 6. Nc3 {[%clk 0:01:03]}  g6 {[%clk 0:03:01]} 7. e4 {[%clk 0:01:04]}  Bg7 {[%clk 0:03:02]} 8. Be2 {[%clk 0:01:04]}  Bg4 {[%clk 0:03:02]} 9. Nd2 {[%clk 0:01:00]}  Bxe2 {[%clk 0:03:03]} 10. Qxe2 {[%clk 0:01:01]}  O-O {[%clk 0:03:03]} 11. O-O {[%clk 0:01:01]}  Re8 {[%clk 0:03:04]} 12. f3 {[%clk 0:01:01]}  Nbd7 {[%clk 0:03:03]} 13. Nc4 {[%clk 0:01:00]}  Ne5 {[%clk 0:02:52]} 14. Bf4 {[%clk 0:00:56]}  Nxc4 {[%clk 0:02:36]} 15. Qxc4 {[%clk 0:00:57]}  a6 {[%clk 0:02:37]} 16. a4 {[%clk 0:00:55]}  Rc8 {[%clk 0:02:32]} 17. a5 {[%clk 0:00:49]}  Nh5 {[%clk 0:02:24]} 18. Be3 {[%clk 0:00:47]}  f5 {[%clk 0:02:24]} 19. Rae1 {[%clk 0:00:35]}  f4 {[%clk 0:02:09]} 20. Bf2 {[%clk 0:00:34]}  Qxa5 {[%clk 0:02:09]} 21. g4 {[%clk 0:00:20]}  fxg3 {[%clk 0:02:06]} 22. hxg3 {[%clk 0:00:21]}  b5 {[%clk 0:02:07]} 23. Qd3 {[%clk 0:00:20]}  Qb4 {[%clk 0:02:07]} 24. Re2 {[%clk 0:00:17]}  Qb3 {[%clk 0:02:07]} 25. f4 {[%clk 0:00:14]}  b4 {[%clk 0:02:07]} 26. Qd1 {[%clk 0:00:14]}  Qxd1 {[%clk 0:01:39]} 27. Nxd1 {[%clk 0:00:15]}  Nf6 {[%clk 0:01:40]} 28. Rfe1 {[%clk 0:00:13]}  Ng4 {[%clk 0:01:40]} 29. b3 {[%clk 0:00:13]}  a5 {[%clk 0:01:37]} 30. e5 {[%clk 0:00:10]}  dxe5 {[%clk 0:01:38]} 31. d6 {[%clk 0:00:10]}  Re6 {[%clk 0:01:24]} 32. d7 {[%clk 0:00:07]}  Rd8 {[%clk 0:01:24]} 33. Bxc5 {[%clk 0:00:08]}  Rxd7 {[%clk 0:01:23]} 34. Ne3 {[%clk 0:00:07]}  Nxe3 {[%clk 0:01:07]} 35. Bxe3 {[%clk 0:00:07]}  exf4 {[%clk 0:01:06]} 36. Bxf4 {[%clk 0:00:08]}  Rxe2 {[%clk 0:01:07]} 37. Rxe2 {[%clk 0:00:09]}  Kf7 {[%clk 0:01:07]} 38. Rc2 {[%clk 0:00:07]}  h6 {[%clk 0:01:05]} 39. Kg2 {[%clk 0:00:07]}  g5 {[%clk 0:01:05]} 40. Be3 {[%clk 0:00:07]}  Rd3 {[%clk 0:01:05]} 41. Bb6 {[%clk 0:00:06]}  Rxb3 {[%clk 0:01:03]} 42. Bxa5 {[%clk 0:00:07]}  Be5 {[%clk 0:01:03]} 43. Rc4 {[%clk 0:00:04]}  Rxg3+ {[%clk 0:01:02]} 44. Kf2 {[%clk 0:00:04]}  b3 {[%clk 0:01:00]} 45. Bc7 {[%clk 0:00:04]}  Rc3 {[%clk 0:00:56]} 46. Rxc3 {[%clk 0:00:02]}  Bxc3 {[%clk 0:00:57]} 0-1


[Site "https://www.chess.com"]

[Event "Titled Tuesday Blitz August 09 Early 2022"]
[White "Barbashin, Igor"]
[Black "Stelmaszyk, Nico"]
[WhiteFideId "4155718"]
[BlackFideId "16200462"]
[WhiteElo "2138"]
[BlackElo "2119"]
[Result "0-1"]
[Round "09"]
[TimeControl "180+1"]
[Date "2022.08.09"]
[WhiteClock "0:00:01"]
[BlackClock "0:00:50"]

1. d4 {[%clk 0:02:31]}  d5 {[%clk 0:02:57]} 2. c4 {[%clk 0:02:31]}  e5 {[%clk 0:02:55]} 3. Nc3 {[%clk 0:02:32]}  dxc4 {[%clk 0:02:51]} 4. d5 {[%clk 0:02:31]}  Nf6 {[%clk 0:02:35]} 5. e4 {[%clk 0:02:28]}  b5 {[%clk 0:02:33]} 6. Nxb5 {[%clk 0:01:11]}  Nxe4 {[%clk 0:02:28]} 7. Bxc4 {[%clk 0:01:03]}  Bb4+ {[%clk 0:02:24]} 8. Kf1 {[%clk 0:01:01]}  O-O {[%clk 0:02:23]} 9. a3 {[%clk 0:00:58]}  Bc5 {[%clk 0:02:15]} 10. Be3 {[%clk 0:00:54]}  Bxe3 {[%clk 0:02:03]} 11. fxe3 {[%clk 0:00:49]}  a6 {[%clk 0:02:04]} 12. Nc3 {[%clk 0:00:48]}  Nd6 {[%clk 0:02:03]} 13. Be2 {[%clk 0:00:47]}  e4 {[%clk 0:01:59]} 14. Nh3 {[%clk 0:00:46]}  Bxh3 {[%clk 0:01:58]} 15. gxh3 {[%clk 0:00:46]}  Qf6+ {[%clk 0:01:58]} 16. Kg2 {[%clk 0:00:45]}  Nf5 {[%clk 0:01:51]} 17. Qd2 {[%clk 0:00:41]}  Nh4+ {[%clk 0:01:45]} 18. Kg3 {[%clk 0:00:25]}  Nf5+ {[%clk 0:01:44]} 19. Kg2 {[%clk 0:00:21]}  Qg5+ {[%clk 0:01:44]} 20. Kf2 {[%clk 0:00:21]}  Qh4+ {[%clk 0:01:40]} 21. Kg2 {[%clk 0:00:20]}  Nd7 {[%clk 0:01:36]} 22. Bg4 {[%clk 0:00:20]}  Qg5 {[%clk 0:01:26]} 23. Nxe4 {[%clk 0:00:21]}  Nxe3+ {[%clk 0:01:20]} 24. Kf3 {[%clk 0:00:19]}  Ne5+ {[%clk 0:01:20]} 25. Ke2 {[%clk 0:00:16]}  Qe7 {[%clk 0:01:02]} 26. Qxe3 {[%clk 0:00:09]}  f5 {[%clk 0:01:02]} 27. Nc3 {[%clk 0:00:05]}  fxg4 {[%clk 0:00:56]} 28. Rhf1 {[%clk 0:00:03]}  Rxf1 {[%clk 0:00:51]} 29. Rxf1 {[%clk 0:00:03]}  Re8 {[%clk 0:00:52]} 30. Kd1 {[%clk 0:00:02]}  gxh3 {[%clk 0:00:50]} 31. Qxh3 {[%clk 0:00:01]}  Nc4 {[%clk 0:00:50]} 0-1


[Site "https://www.chess.com"]

[Event "Titled Tuesday Blitz August 09 Early 2022"]
[White "Blanco Ronquillo, Humberto L."]
[Black "Zou, Chen"]
[WhiteFideId "3504239"]
[BlackFideId "8610959"]
[WhiteElo "2425"]
[BlackElo "2276"]
[Result "1-0"]
[Round "09"]
[TimeControl "180+1"]
[Date "2022.08.09"]
[WhiteClock "0:00:05"]
[BlackClock "0:00:02"]

1. d4 {[%clk 0:03:00]}  Nf6 {[%clk 0:02:59]} 2. c4 {[%clk 0:03:00]}  e6 {[%clk 0:03:00]} 3. Nf3 {[%clk 0:03:00]}  d5 {[%clk 0:03:00]} 4. Nc3 {[%clk 0:03:00]}  Be7 {[%clk 0:02:57]} 5. Bf4 {[%clk 0:03:00]}  O-O {[%clk 0:02:57]} 6. e3 {[%clk 0:03:01]}  c5 {[%clk 0:02:37]} 7. dxc5 {[%clk 0:03:01]}  Bxc5 {[%clk 0:02:38]} 8. cxd5 {[%clk 0:03:01]}  Nxd5 {[%clk 0:02:37]} 9. Nxd5 {[%clk 0:03:01]}  exd5 {[%clk 0:02:38]} 10. Bd3 {[%clk 0:03:01]}  Bb4+ {[%clk 0:02:33]} 11. Nd2 {[%clk 0:03:01]}  d4 {[%clk 0:02:33]} 12. e4 {[%clk 0:03:01]}  Nc6 {[%clk 0:02:32]} 13. O-O {[%clk 0:03:00]}  Bd6 {[%clk 0:02:20]} 14. Bg3 {[%clk 0:02:42]}  Bxg3 {[%clk 0:02:17]} 15. hxg3 {[%clk 0:02:42]}  Ne5 {[%clk 0:01:58]} 16. Nb3 {[%clk 0:02:33]}  Be6 {[%clk 0:01:34]} 17. Rc1 {[%clk 0:02:22]}  b6 {[%clk 0:01:28]} 18. Bb1 {[%clk 0:01:58]}  Ng4 {[%clk 0:00:36]} 19. Qxd4 {[%clk 0:01:39]}  Qg5 {[%clk 0:00:35]} 20. f3 {[%clk 0:01:23]}  Rfd8 {[%clk 0:00:33]} 21. Qc3 {[%clk 0:01:23]}  Rac8 {[%clk 0:00:33]} 22. Qe1 {[%clk 0:01:23]}  Bxb3 {[%clk 0:00:21]} 23. axb3 {[%clk 0:01:05]}  Ne3 {[%clk 0:00:11]} 24. f4 {[%clk 0:00:13]}  Rxc1 {[%clk 0:00:10]} 25. fxg5 {[%clk 0:00:14]}  Rxe1 {[%clk 0:00:10]} 26. Rxe1 {[%clk 0:00:14]}  Ng4 {[%clk 0:00:06]} 27. Rc1 {[%clk 0:00:13]}  Ne5 {[%clk 0:00:04]} 28. Bc2 {[%clk 0:00:11]}  h6 {[%clk 0:00:05]} 29. gxh6 {[%clk 0:00:10]}  gxh6 {[%clk 0:00:06]} 30. Bd1 {[%clk 0:00:11]}  Rd2 {[%clk 0:00:05]} 31. Bh5 {[%clk 0:00:11]}  Rxb2 {[%clk 0:00:05]} 32. Rc7 {[%clk 0:00:11]}  Rxb3 {[%clk 0:00:05]} 33. Rxa7 {[%clk 0:00:11]}  Rb5 {[%clk 0:00:05]} 34. Rb7 {[%clk 0:00:10]}  Kg7 {[%clk 0:00:05]} 35. Bf3 {[%clk 0:00:10]}  Kf6 {[%clk 0:00:06]} 36. g4 {[%clk 0:00:10]}  Rb1+ {[%clk 0:00:06]} 37. Kh2 {[%clk 0:00:10]}  b5 {[%clk 0:00:07]} 38. Kg3 {[%clk 0:00:10]}  Kg5 {[%clk 0:00:07]} 39. Rb6 {[%clk 0:00:10]}  f6 {[%clk 0:00:07]} 40. Rb8 {[%clk 0:00:10]}  Kg6 {[%clk 0:00:08]} 41. Rg8+ {[%clk 0:00:09]}  Kf7 {[%clk 0:00:08]} 42. Rh8 {[%clk 0:00:09]}  Kg7 {[%clk 0:00:08]} 43. Rb8 {[%clk 0:00:09]}  b4 {[%clk 0:00:09]} 44. Kf4 {[%clk 0:00:09]}  b3 {[%clk 0:00:06]} 45. Kf5 {[%clk 0:00:08]}  b2 {[%clk 0:00:06]} 46. Rb7+ {[%clk 0:00:08]}  Nf7 {[%clk 0:00:06]} 47. e5 {[%clk 0:00:08]}  fxe5 {[%clk 0:00:05]} 48. Ke6 {[%clk 0:00:08]}  Kg8 {[%clk 0:00:04]} 49. Bd5 {[%clk 0:00:07]}  Ng5+ {[%clk 0:00:02]} 50. Kf6+ {[%clk 0:00:05]}  Kh8 {[%clk 0:00:02]} 51. Kg6 {[%clk 0:00:05]} 1-0


[Site "https://www.chess.com"]

[Event "Titled Tuesday Blitz August 09 Early 2022"]
[White "Bortnyk, Olexandr"]
[Black "Drozdowski, Kacper"]
[WhiteFideId "14120828"]
[BlackFideId "1136720"]
[WhiteElo "2723"]
[BlackElo "2485"]
[Result "1-0"]
[Round "09"]
[TimeControl "180+1"]
[Date "2022.08.09"]
[WhiteClock "0:00:08"]
[BlackClock "0:00:17"]

1. d4 {[%clk 0:03:00]}  Nf6 {[%clk 0:02:59]} 2. Nc3 {[%clk 0:03:01]}  d5 {[%clk 0:02:59]} 3. Bf4 {[%clk 0:03:01]}  c6 {[%clk 0:02:58]} 4. e3 {[%clk 0:03:02]}  Bf5 {[%clk 0:02:56]} 5. Nf3 {[%clk 0:03:02]}  Nbd7 {[%clk 0:02:54]} 6. Ne5 {[%clk 0:03:01]}  Nxe5 {[%clk 0:02:48]} 7. Bxe5 {[%clk 0:03:02]}  e6 {[%clk 0:02:47]} 8. Bd3 {[%clk 0:03:03]}  Bxd3 {[%clk 0:02:47]} 9. cxd3 {[%clk 0:03:03]}  Be7 {[%clk 0:02:44]} 10. O-O {[%clk 0:03:02]}  O-O {[%clk 0:02:44]} 11. a3 {[%clk 0:03:01]}  c5 {[%clk 0:02:41]} 12. Qb3 {[%clk 0:02:58]}  cxd4 {[%clk 0:02:34]} 13. Bxd4 {[%clk 0:02:56]}  Qd7 {[%clk 0:02:34]} 14. Rac1 {[%clk 0:02:54]}  Rfc8 {[%clk 0:02:33]} 15. h3 {[%clk 0:02:55]}  h6 {[%clk 0:02:31]} 16. a4 {[%clk 0:02:50]}  Rc6 {[%clk 0:02:30]} 17. a5 {[%clk 0:02:46]}  Ne8 {[%clk 0:02:19]} 18. Ne2 {[%clk 0:02:36]}  Nd6 {[%clk 0:02:03]} 19. Rxc6 {[%clk 0:02:35]}  Qxc6 {[%clk 0:02:03]} 20. Rc1 {[%clk 0:02:34]}  Qd7 {[%clk 0:02:03]} 21. Rc2 {[%clk 0:02:10]}  Nb5 {[%clk 0:01:55]} 22. Be5 {[%clk 0:02:09]}  a6 {[%clk 0:01:54]} 23. Nc3 {[%clk 0:01:57]}  Nxc3 {[%clk 0:01:41]} 24. Qxc3 {[%clk 0:01:57]}  Bf8 {[%clk 0:01:40]} 25. Qc7 {[%clk 0:01:53]}  Qb5 {[%clk 0:01:38]} 26. d4 {[%clk 0:01:43]}  Qb3 {[%clk 0:01:32]} 27. Kh2 {[%clk 0:01:38]}  Qb5 {[%clk 0:01:19]} 28. Qb6 {[%clk 0:01:32]}  Qxb6 {[%clk 0:01:06]} 29. axb6 {[%clk 0:01:33]}  f6 {[%clk 0:01:06]} 30. Bg3 {[%clk 0:01:31]}  Re8 {[%clk 0:01:06]} 31. Rc7 {[%clk 0:01:26]}  Re7 {[%clk 0:01:06]} 32. Rc8 {[%clk 0:01:17]}  Rd7 {[%clk 0:01:04]} 33. Bc7 {[%clk 0:01:05]}  Kf7 {[%clk 0:01:04]} 34. Rb8 {[%clk 0:01:06]}  Bd6+ {[%clk 0:00:47]} 35. Kh1 {[%clk 0:00:48]}  e5 {[%clk 0:00:30]} 36. Rxb7 {[%clk 0:00:46]}  Ke6 {[%clk 0:00:30]} 37. Ra7 {[%clk 0:00:41]}  exd4 {[%clk 0:00:29]} 38. exd4 {[%clk 0:00:35]}  Kf5 {[%clk 0:00:29]} 39. Rxa6 {[%clk 0:00:21]}  Bxc7 {[%clk 0:00:27]} 40. Ra7 {[%clk 0:00:21]}  Bxb6 {[%clk 0:00:18]} 41. Rxd7 {[%clk 0:00:21]}  Ke4 {[%clk 0:00:18]} 42. Rxg7 {[%clk 0:00:18]}  Bxd4 {[%clk 0:00:19]} 43. f3+ {[%clk 0:00:16]}  Ke3 {[%clk 0:00:17]} 44. Rd7 {[%clk 0:00:16]}  Bxb2 {[%clk 0:00:16]} 45. Rxd5 {[%clk 0:00:16]}  Be5 {[%clk 0:00:17]} 46. Rd8 {[%clk 0:00:13]}  Kf4 {[%clk 0:00:17]} 47. Rg8 {[%clk 0:00:13]}  h5 {[%clk 0:00:17]} 48. h4 {[%clk 0:00:12]}  Kf5 {[%clk 0:00:17]} 49. g3 {[%clk 0:00:10]}  Ke6 {[%clk 0:00:16]} 50. f4 {[%clk 0:00:08]}  Kf7 {[%clk 0:00:16]} 51. Rh8 {[%clk 0:00:07]}  Bd4 {[%clk 0:00:16]} 52. Rxh5 {[%clk 0:00:07]}  Kg6 {[%clk 0:00:16]} 53. Rd5 {[%clk 0:00:07]}  Bc3 {[%clk 0:00:16]} 54. Kg2 {[%clk 0:00:07]}  f5 {[%clk 0:00:17]} 55. Kf3 {[%clk 0:00:06]}  Bb2 {[%clk 0:00:17]} 56. h5+ {[%clk 0:00:06]}  Kf6 {[%clk 0:00:18]} 57. Rd6+ {[%clk 0:00:06]}  Kg7 {[%clk 0:00:18]} 58. Rg6+ {[%clk 0:00:06]}  Kf7 {[%clk 0:00:18]} 59. g4 {[%clk 0:00:06]}  fxg4+ {[%clk 0:00:18]} 60. Kxg4 {[%clk 0:00:07]}  Bh8 {[%clk 0:00:18]} 61. Kf5 {[%clk 0:00:07]}  Bd4 {[%clk 0:00:17]} 62. h6 {[%clk 0:00:08]} 1-0


[Site "https://www.chess.com"]

[Event "Titled Tuesday Blitz August 09 Early 2022"]
[White "Chernomordik, Pavel"]
[Black "Grot, Blazej"]
[WhiteFideId "2804530"]
[BlackFideId "21835845"]
[WhiteElo "2217"]
[BlackElo "1614"]
[Result "1-0"]
[Round "09"]
[TimeControl "180+1"]
[Date "2022.08.09"]
[WhiteClock "0:02:08"]
[BlackClock "0:02:06"]

1. e4 {[%clk 0:03:00]}  c5 {[%clk 0:02:58]} 2. Nc3 {[%clk 0:03:00]}  e6 {[%clk 0:02:57]} 3. f4 {[%clk 0:02:58]}  Ne7 {[%clk 0:02:53]} 4. Nf3 {[%clk 0:02:58]}  Nbc6 {[%clk 0:02:53]} 5. g3 {[%clk 0:02:55]}  d5 {[%clk 0:02:52]} 6. d3 {[%clk 0:02:54]}  dxe4 {[%clk 0:02:44]} 7. Nxe4 {[%clk 0:02:53]}  Nf5 {[%clk 0:02:43]} 8. Bg2 {[%clk 0:02:52]}  Be7 {[%clk 0:02:42]} 9. O-O {[%clk 0:02:51]}  h6 {[%clk 0:02:41]} 10. g4 {[%clk 0:02:50]}  Nfd4 {[%clk 0:02:39]} 11. c3 {[%clk 0:02:47]}  Nxf3+ {[%clk 0:02:38]} 12. Qxf3 {[%clk 0:02:46]}  O-O {[%clk 0:02:32]} 13. Be3 {[%clk 0:02:46]}  b6 {[%clk 0:02:31]} 14. Rad1 {[%clk 0:02:40]}  Bb7 {[%clk 0:02:30]} 15. f5 {[%clk 0:02:36]}  exf5 {[%clk 0:02:28]} 16. gxf5 {[%clk 0:02:34]}  Bf6 {[%clk 0:02:25]} 17. Qg3 {[%clk 0:02:32]}  Qe7 {[%clk 0:02:17]} 18. Bxh6 {[%clk 0:02:26]}  Kh7 {[%clk 0:02:10]} 19. Bf4 {[%clk 0:02:24]}  Rae8 {[%clk 0:02:07]} 20. Bd6 {[%clk 0:02:20]}  Qd7 {[%clk 0:02:06]} 21. Bxf8 {[%clk 0:02:13]}  Rxf8 {[%clk 0:02:07]} 22. Nxf6+ {[%clk 0:02:08]}  gxf6 {[%clk 0:02:06]} 23. Rf4 {[%clk 0:02:08]} 1-0


[Site "https://www.chess.com"]

[Event "Titled Tuesday Blitz August 09 Early 2022"]
[White "Chigaev, Maksim"]
[Black "Drygalov, Sergey"]
[WhiteFideId "4108116"]
[BlackFideId "24171743"]
[WhiteElo "2487"]
[BlackElo "2523"]
[Result "0-1"]
[Round "09"]
[TimeControl "180+1"]
[Date "2022.08.09"]
[WhiteClock "0:00:07"]
[BlackClock "0:00:05"]

1. e4 {[%clk 0:03:00]}  e5 {[%clk 0:02:58]} 2. Nf3 {[%clk 0:03:00]}  Nc6 {[%clk 0:02:58]} 3. g3 {[%clk 0:03:00]}  Nf6 {[%clk 0:02:57]} 4. d3 {[%clk 0:03:01]}  Bc5 {[%clk 0:02:55]} 5. Bg2 {[%clk 0:03:01]}  d6 {[%clk 0:02:56]} 6. O-O {[%clk 0:02:59]}  h5 {[%clk 0:02:46]} 7. h4 {[%clk 0:02:54]}  Bg4 {[%clk 0:02:43]} 8. c3 {[%clk 0:02:54]}  Qe7 {[%clk 0:02:41]} 9. b4 {[%clk 0:02:53]}  Bb6 {[%clk 0:02:41]} 10. a4 {[%clk 0:02:49]}  a5 {[%clk 0:02:38]} 11. b5 {[%clk 0:02:49]}  Nd8 {[%clk 0:02:38]} 12. Nbd2 {[%clk 0:02:49]}  Ne6 {[%clk 0:02:24]} 13. Nc4 {[%clk 0:02:49]}  Bc5 {[%clk 0:02:09]} 14. Ne3 {[%clk 0:02:14]}  O-O {[%clk 0:01:49]} 15. Nf5 {[%clk 0:01:42]}  Qd7 {[%clk 0:01:43]} 16. Qc2 {[%clk 0:01:41]}  Rfe8 {[%clk 0:01:14]} 17. Ne3 {[%clk 0:01:06]}  c6 {[%clk 0:01:06]} 18. bxc6 {[%clk 0:01:03]}  bxc6 {[%clk 0:01:07]} 19. Nh2 {[%clk 0:01:01]}  d5 {[%clk 0:00:58]} 20. Nexg4 {[%clk 0:00:44]}  hxg4 {[%clk 0:00:58]} 21. exd5 {[%clk 0:00:45]}  cxd5 {[%clk 0:00:59]} 22. Bg5 {[%clk 0:00:45]}  Nh5 {[%clk 0:00:42]} 23. Kh1 {[%clk 0:00:40]}  f5 {[%clk 0:00:40]} 24. d4 {[%clk 0:00:38]}  exd4 {[%clk 0:00:33]} 25. Qxf5 {[%clk 0:00:35]}  dxc3 {[%clk 0:00:18]} 26. Bxd5 {[%clk 0:00:33]}  Ra6 {[%clk 0:00:19]} 27. Rad1 {[%clk 0:00:28]}  Qf7 {[%clk 0:00:15]} 28. Qxg4 {[%clk 0:00:11]}  Rd6 {[%clk 0:00:15]} 29. Bb3 {[%clk 0:00:07]}  Qb7+ {[%clk 0:00:15]} 30. Nf3 {[%clk 0:00:06]}  Qxb3 {[%clk 0:00:13]} 31. Rxd6 {[%clk 0:00:06]}  Bxd6 {[%clk 0:00:13]} 32. Qxh5 {[%clk 0:00:07]}  Rf8 {[%clk 0:00:13]} 33. Be3 {[%clk 0:00:05]}  Qb7 {[%clk 0:00:13]} 34. Kg2 {[%clk 0:00:05]}  Qe4 {[%clk 0:00:13]} 35. Rd1 {[%clk 0:00:04]}  Ba3 {[%clk 0:00:07]} 36. Qd5 {[%clk 0:00:04]}  Qxd5 {[%clk 0:00:07]} 37. Rxd5 {[%clk 0:00:05]}  c2 {[%clk 0:00:07]} 38. Rxa5 {[%clk 0:00:06]}  c1=Q {[%clk 0:00:07]} 39. Bxc1 {[%clk 0:00:06]}  Bxc1 {[%clk 0:00:08]} 40. Re5 {[%clk 0:00:06]}  Kf7 {[%clk 0:00:06]} 41. a5 {[%clk 0:00:05]}  Ra8 {[%clk 0:00:06]} 42. Rf5+ {[%clk 0:00:05]}  Ke7 {[%clk 0:00:06]} 43. Rb5 {[%clk 0:00:04]}  Ba3 {[%clk 0:00:04]} 44. Nd2 {[%clk 0:00:04]}  Bd6 {[%clk 0:00:04]} 45. Nc4 {[%clk 0:00:05]}  Bc7 {[%clk 0:00:05]} 46. h5 {[%clk 0:00:05]}  Nd4 {[%clk 0:00:04]} 47. Rd5 {[%clk 0:00:05]}  Ne6 {[%clk 0:00:03]} 48. Rf5 {[%clk 0:00:02]}  Rb8 {[%clk 0:00:03]} 49. f4 {[%clk 0:00:02]}  Rb4 {[%clk 0:00:04]} 50. Ne3 {[%clk 0:00:03]}  Rb2+ {[%clk 0:00:04]} 51. Kh3 {[%clk 0:00:02]}  Rb3 {[%clk 0:00:05]} 52. Nd5+ {[%clk 0:00:03]}  Kd6 {[%clk 0:00:05]} 53. Nxc7 {[%clk 0:00:04]}  Kxc7 {[%clk 0:00:06]} 54. Kg4 {[%clk 0:00:03]}  Kd6 {[%clk 0:00:06]} 55. Rf7 {[%clk 0:00:03]}  Ra3 {[%clk 0:00:05]} 56. Ra7 {[%clk 0:00:03]}  Kd5 {[%clk 0:00:02]} 57. a6 {[%clk 0:00:03]}  Ke4 {[%clk 0:00:02]} 58. Re7 {[%clk 0:00:03]}  Kd5 {[%clk 0:00:02]} 59. a7 {[%clk 0:00:04]}  Kd6 {[%clk 0:00:03]} 60. Rf7 {[%clk 0:00:04]}  Kd5 {[%clk 0:00:02]} 61. Kh4 {[%clk 0:00:04]}  Ke4 {[%clk 0:00:02]} 62. Re7 {[%clk 0:00:04]}  Kf5 {[%clk 0:00:03]} 63. g4+ {[%clk 0:00:04]}  Kf6 {[%clk 0:00:03]} 64. Re8 {[%clk 0:00:04]}  Rxa7 {[%clk 0:00:02]} 65. f5 {[%clk 0:00:04]}  Nf4 {[%clk 0:00:03]} 66. Kg3 {[%clk 0:00:03]}  Nd5 {[%clk 0:00:03]} 67. Re6+ {[%clk 0:00:03]}  Kf7 {[%clk 0:00:03]} 68. g5 {[%clk 0:00:04]}  Ra3+ {[%clk 0:00:04]} 69. Kf2 {[%clk 0:00:04]}  Nf4 {[%clk 0:00:03]} 70. g6+ {[%clk 0:00:04]}  Kf8 {[%clk 0:00:04]} 71. Rc6 {[%clk 0:00:03]}  Nxh5 {[%clk 0:00:04]} 72. Rc8+ {[%clk 0:00:03]}  Ke7 {[%clk 0:00:05]} 73. Rc7+ {[%clk 0:00:03]}  Kf6 {[%clk 0:00:05]} 74. Rf7+ {[%clk 0:00:04]}  Kg5 {[%clk 0:00:05]} 75. Ke2 {[%clk 0:00:05]}  Ra5 {[%clk 0:00:05]} 76. Kd2 {[%clk 0:00:06]}  Rxf5 {[%clk 0:00:05]} 77. Kd3 {[%clk 0:00:07]}  Kxg6 {[%clk 0:00:05]} 0-1


[Site "https://www.chess.com"]